Cogmind - Beta 13 @@@ ROGUE MODE // 2024.04.12 @ 19:52:03 Player: MO-55 Result: Destroyed by 8G-4D8(R) with Subdweller Shrapnel Launcher Performance ------------- Evolutions (0) 0 Regions Visited (2) 400 Robots Destroyed (30) 150 Value Destroyed (968) 968 Prototype IDs (1) 20 Alien Tech Used (0) 0 Bonus (0) 0 TOTAL SCORE: 1538 Bonus ------- None Cogmind --------- Core Integrity 0/250 Matter 280/300 Energy 250/280 System Corruption 0% Temperature Cool (0) Movement Treading (340) Ox2 Location -10/Subcaves Parts ------- > --- POWER (1) -------- Heavy Ion Engine > --- PROPULSION (2) --- Light Treads Spiked Treads > --- UTILITY (2) ------ Huge Storage Unit Medium Armor Plating > --- WEAPON (2) ------- Particle Cannon Subdweller Shrapnel Launcher > --- INVENTORY (25) --- Ion Engine Ion Engine Ion Engine Light Treads Light Treads Light Treads Light Treads Light Treads Light Treads Medium Matter Pod (100) Targeting Computer Makeshift Light Armor Plating Particle Cannon Particle Cannon Subdweller Shrapnel Launcher Mining Laser Enhanced Flamer Makeshift Hammer Shrapnel Trap Shrapnel Trap Piercing Trap Peak State ------------ > --- POWER ------------ Heavy Ion Engine > --- PROPULSION ------- Spiked Treads Spiked Treads > --- UTILITY ---------- Huge Storage Unit Makeshift Light Armor Plating > --- WEAPON ----------- Subdweller Beam Cannon Subdweller Machine Gun > --- INVENTORY -------- Ion Engine Ion Engine Ion Engine Light Treads Light Treads Light Treads Light Treads Light Treads Light Treads Light Treads Medium Matter Pod Targeting Computer Medium Armor Plating Particle Cannon Particle Cannon Particle Cannon Subdweller Shrapnel Launcher Subdweller Shrapnel Launcher Mining Laser Enhanced Flamer Makeshift Hammer Shrapnel Trap Shrapnel Trap Piercing Trap [Rating: 19] Favorites ----------- Power Heavy Ion Engine Engine Heavy Ion Engine Propulsion Wheel Treads Spiked Treads Leg Aluminum Leg Wheel Wheel Utility Huge Storage Unit Device Improved Terrain Scanner Storage Huge Storage Unit Protection Medium Armor Plating Weapon Particle Cannon Energy Cannon Particle Cannon Ballistic Gun Assault Rifle Ballistic Cannon Battle Cannon Special Weapon Mining Laser Build | -11 -10 -10 ------- Run | Yrd Mat Sub Slots Evolved . | . . . Power . | . . . Propulsion . | . . . Utility . | . . . Weapon . | . . . Parts Attached 39 | 7 9 23 Power 2 | 1 1 . Engine 2 | 1 1 . Core . | . . . Reactor . | . . . Propulsion 9 | 2 2 5 Treads 5 | . . 5 Leg 2 | 2 . . Wheel 2 | . 2 . Hover . | . . . Flight . | . . . Utility 13 | 2 3 8 Device 4 | 1 . 3 Storage 2 | 1 1 . Processor . | . . . Hackware . | . . . Protection 7 | . 2 5 Artifact . | . . . Weapon 15 | 2 3 10 Energy Gun . | . . . Energy Cannon 7 | . 1 6 Ballistic Gun 5 | 2 1 2 Ballistic Cannon 1 | . . 1 Launcher 1 | . . 1 Special Weapon 1 | . 1 . Impact Weapon . | . . . Slashing Weapon . | . . . Piercing Weapon . | . . . Special Melee Weapon . | . . . Unidentified Prototypes 1 | . 1 . Parts Lost 6 | . 2 4 Power 1 | . 1 . Propulsion 1 | . . 1 Utility 3 | . 1 2 Weapon 1 | . . 1 Highest Loss Streak 2 | . 1 2 To Critical Strikes 1 | . . 1 Average Slot Usage (%) 99 | . 99 99 Engine 14 | . 14 14 Treads 15 | . . 28 Wheel 11 | . 27 . Device 2 | . . 4 Storage 14 | . 14 14 Protection 11 | . 13 9 Energy Cannon 16 | . 13 17 Ballistic Gun 10 | . 13 8 Naked Turns . | . . . Heaviest Build 107 | 15 101 107 Greatest Support 40 | 20 20 40 Greatest Overweight (x) 5 | . 5 2 Average Overweight (x) 3 | . 4 2 Largest Inventory Capacity 25 | 8 25 25 Average Capacity 24 | 6 24 25 Most Carried 25 | 7 25 25 Average Carried 22 | 4 22 23 Final Capacity 25 | 8 25 25 Final Carried 25 | 7 25 21 Class Distribution -------------------- 78% | Mutant 14% | Scavenger-Mutant 6% | Derelict-Mutant Dominant Class ---------------- Mutant | -10/Materials Mutant | -10/Subcaves Resources | -11 -10 -10 ----------- Run | Yrd Mat Sub Matter Collected 940 | 246 352 342 Remotely . | . . . Salvage Created 1290 | 10 532 748 Parts 78 | 4 29 45 Haulers Intercepted 1 | . 1 . Recyclers Shooed 1 | 1 . . Parts Field Recycled . | . . . Retrieved Matter . | . . . Parts Self-Destructed 9 | . . 9 Prevented . | . . . Kills | -11 -10 -10 ------- Run | Yrd Mat Sub Combat Hostiles Destroyed 26 | . 10 16 Guns 7 | . 1 6 Cannons 18 | . 9 9 Classes Destroyed 7 | 1 4 2 Tunneler 1 | 1 . . Hauler 1 | . 1 . Mechanic 1 | . 1 . Operator 1 | . 1 . Swarmer 3 | . . 3 Grunt 12 | . 10 2 Subdweller 11 | . . 11 Best Kill Streak 4 | 1 4 3 Combat Bots Only 4 | . 4 3 Max Kills in Single Turn 1 | 1 1 1 Gunslinging . | . . . Exploded . | . . . Melee . | . . . Uniques/NPCs Destroyed . | . . . Combat | -11 -10 -10 -------- Run | Yrd Mat Sub Hostile Shots Fired 138 | . 39 99 Missed 32 | . 4 28 Damage Taken 1775 | . 450 1325 Core 264 | . 59 205 Absorbed by Shields . | . . . Regen/Repaired (Parts) 93 | . 93 . Core Remaining (%) 100 | 100 . . Volleys Fired 114 | 3 46 65 Largest 2 | 2 2 2 Hottest 136 | 40 100 136 Shots Fired 221 | 6 88 127 Gun 82 | 6 45 31 Cannon 138 | . 42 96 Launcher . | . . . Special 1 | . 1 . Kinetic 94 | 6 45 43 Thermal 127 | . 43 84 Explosive . | . . . Electromagnetic . | . . . Robot Hit Streak 24 | 3 11 24 Robot Miss Streak 2 | 1 2 2 Penetration Max . | . . . Secondary Targets . | . . . Shots Hit Robots 142 | 4 49 89 Core Hits 51 | 1 20 30 Critical Kills 1 | . . 1 Critical Parts Destroyed . | . . . Critical Strikes 2 | . . 2 Meltdown 1 | . . 1 Blast 1 | . . 1 Melee Attacks . | . . . Impact . | . . . Slashing . | . . . Piercing . | . . . Sneak Attacks . | . . . Combat Hostiles . | . . . Follow-up Attacks . | . . . Damage Inflicted 2865 | 50 835 1980 Guns 823 | 50 294 479 Cannons 2042 | . 541 1501 Explosions . | . . . Melee . | . . . Ramming . | . . . Kinetic 1025 | 50 294 681 Thermal 1840 | . 541 1299 Explosive . | . . . Electromagnetic . | . . . Impact . | . . . Slashing . | . . . Piercing . | . . . Highest Corruption . | . . . Average Corruption . | . . . Corruption Purged . | . . . Corruption Blocked . | . . . Overload Shots . | . . . Overflow Damage 20 | . . 20 Projectiles 20 | . . 20 Explosions . | . . . Melee . | . . . Knockbacks 5 | . . 5 Impact . | . . . Kinetic 4 | . . 4 Secondary 1 | . . 1 Self-Inflicted Damage . | . . . Shots . | . . . Rammed . | . . . Targets Rammed . | . . . Kicked . | . . . Crushed . | . . . Highest Temperature 279 | . 234 279 Average Temperature 84 | . 91 73 Received Heat Transfer 816 | . 294 522 Siege Activations . | . . . Robots Corrupted . | . . . Combat Hostiles . | . . . Parts Fried . | . . . Impact Corruptions . | . . . Robots Melted 1 | . . 1 Combat Hostiles 1 | . . 1 Parts Melted 8 | . 1 7 Heat Transferred 3034 | . 962 2072 Parts Sabotaged . | . . . Parts Stolen . | . . . Parts Stripped . | . . . Power Chain Reactions . | . . . Alert | -11 -10 -10 ------- Run | Yrd Mat Sub Peak Influence 146 | 5 146 . Initial 3 | . 3 . Average 23 | . 24 . Maximum Alert Level . | . . . Low Security (%) 100 | 100 100 . Level 1 . | . . . Level 2 . | . . . Level 3 . | . . . Level 4 . | . . . Level 5 . | . . . High Security . | . . . Max Security . | . . . Squads Dispatched 1 | . 1 . Investigation . | . . . Extermination . | . . . Reinforcement 1 | . 1 . Assault . | . . . Garrison . | . . . Intercept . | . . . Searches Triggered . | . . . Construction Impeded . | . . . Haulers Reinforced . | . . . Active Scanning Responses . | . . . Cargo Convoy Interrupts . | . . . Stealth | -11 -10 -10 --------- Run | Yrd Mat Sub Distress Signals 3 | . 3 . Communications Jammed . | . . . Distress Signals . | . . . Times Spotted 50 | . 26 24 Peak Tracking Total 6 | . 6 6 Tactical Retreats 1 | . . 1 Traps | -11 -10 -10 ------- Run | Yrd Mat Sub Traps Triggered . | . . . Indirectly . | . . . Trap Hack Attempts . | . . . Triggered . | . . . Disarmed . | . . . Reprogrammed . | . . . Reused . | . . . Traps Extracted . | . . . Installed . | . . . Triggered . | . . . Most Traps Carried 3 | . . 3 Machines | -11 -10 -10 ---------- Run | Yrd Mat Sub Machines Disabled . | . . . Max in Single Turn . | . . . Machines Repaired . | . . . Machines Dismantled . | . . . Machines Sabotaged . | . . . Overloaded Fab Kills . | . . . Hacking | -11 -10 -10 --------- Run | Yrd Mat Sub Machines Accessed 8 | . 8 . Terminals 7 | . 7 . Fabricators . | . . . Repair Stations 1 | . 1 . Recycling Units . | . . . Scanalyzers . | . . . Garrison Access . | . . . Total Hacks 22 | . 22 . Successful 10 | . 10 . Failed 12 | . 12 . Catastrophic 1 | . 1 . Database Lockouts . | . . . Manual 11 | . 11 . Terminals 20 | . 20 . Fabricators . | . . . Repair Stations 2 | . 2 . Recycling Units . | . . . Scanalyzers . | . . . Garrison Access . | . . . Terminal Hacks 6 | . 6 . Part Schematic 1 | . 1 . Robot Analysis 3 | . 3 . Locate Traps 1 | . 1 . Hauler Manifests 1 | . 1 . Fabricator Hacks . | . . . Repair Station Hacks 2 | . 2 . Scan Component 1 | . 1 . Repair 1 | . 1 . Recycling Unit Hacks . | . . . Scanalyzer . | . . . Garrison Access Hacks . | . . . Unauthorized Hacks 2 | . 2 . Terminals 2 | . 2 . Botnet 2 | . 2 . Fabricators . | . . . Repair Stations . | . . . Recycling Units . | . . . Scanalyzers . | . . . Garrison Access . | . . . Data Cores Recovered 1 | . 1 . Used . | . . . Hacking Detections 8 | . 8 . Full Trace Events . | . . . Feedback Events . | . . . Feedback Blocked . | . . . Robot Schematics Acquired . | . . . Robots Built . | . . . Authchips . | . . . Time . | . . . Total Robot Build Rating . | . . . Part Schematics Acquired 1 | . 1 . Parts Built . | . . . Authchips . | . . . Time . | . . . Total Part Build Rating . | . . . Parts Repaired 1 | . 1 . Time 26 | . 26 . Parts Recycled . | . . . Recycled Matter . | . . . Retrieved Matter . | . . . Retrieved Components . | . . . Parts Scanalyzed . | . . . Part Schematics Acquired . | . . . Parts Damaged . | . . . Bothacking | -11 -10 -10 ------------ Run | Yrd Mat Sub Used RIF Installer . | . . . Robots Hacked . | . . . Non-combat . | . . . Combat . | . . . Robot Hacks Applied . | . . . Relay Couplers Released . | . . . Fabnet Peak Effective % . | . . . Robots Rewired . | . . . Allies Hacked . | . . . Hacks Repelled . | . . . Allies | -11 -10 -10 -------- Run | Yrd Mat Sub Total Allies . | . . . Largest Group . | . . . Highest-Rated Group . | . . . Highest-Rated Ally . | . . . Total Orders . | . . . Ally Attacks . | . . . Total Damage . | . . . Kills . | . . . Allies Corrupted . | . . . Allies Melted . | . . . Intel | -11 -10 -10 ------- Run | Yrd Mat Sub Robot Analysis Total 3 | . 3 . Derelict Logs Recovered 2 | . . 2 Drone Launches . | . . . Drone Recoveries . | . . . Exploration | -11 -10 -10 ------------- Run | Yrd Mat Sub Turns Passed 5865 | 82 2494 3289 Spaces Moved 1738 | 52 829 857 Core 9 | 9 . . Treads 857 | . . 857 Legs 62 | 43 19 . Wheels 810 | . 810 . Hover . | . . . Flight . | . . . Fastest Speed 50 | 50 120 320 Average Speed 243 | 107 152 339 Slowest Speed 360 | 120 155 360 Overloaded Moves . | . . . Propulsion Burnouts . | . . . Robots Hopped . | . . . Cave-ins Triggered . | . . . Exploration Rate (%) 52 | 3 97 57 Regions Visited 2 Branch Regions 1 Pre-discovered Areas 2 | . . 2 Known Exits Taken . | . . . Unknown Exits Taken 2 | 1 1 . Scrap Searched 11 | . . 11 Spaces Dug 1 | . 1 . Terrain Destroyed 4 | . 1 3 Melee . | . . . Projectile 4 | . 1 3 AOE . | . . . Terrain Rammed . | . . . Walls Destroyed . | . . . Machines Disabled . | . . . Actions | -11 -10 -10 --------- Run | Yrd Mat Sub Total 3145 | 69 1965 1111 Wait 1183 | . 1052 131 Move 1736 | 51 828 857 Hop . | . . . Pick Up 44 | 8 23 13 Fast Attach 12 | 6 2 4 Attach 7 | 1 1 5 Detach 3 | . 1 2 Swap 21 | . 7 14 Drop 25 | . 5 20 Fire 114 | 3 46 65 Melee . | . . . Ram . | . . . Kick . | . . . Crush . | . . . Escape Stasis . | . . . Rewire . | . . . Trap . | . . . Miscellaneous . | . . . Route ------- -11/Scrapyard -10/Materials (discovered 5 exits: [*Mat x3] / [*Min] / [*Sub]) -10/Subcaves (discovered 2 exits: [*Mat x2]) History --------- Turn | Location | Event 12 | -11/Scrapyard | Discovered new exit (range 15) 83 | -11/Scrapyard | Entered Materials 304 | -10/Materials | Build established: Mutant 611 | -10/Materials | Discovered new exit (range 14) 863 | -10/Materials | Discovered new exit (range 16) 895 | -10/Materials | Repaired Lgt. Treads 1332 | -10/Materials | Discovered new exit (range 15) 1540 | -10/Materials | Discovered new exit (range 11) 2519 | -10/Materials | Discovered new exit (range 5) 2577 | -10/Materials | Entered Subcaves 2691 | -10/Subcaves | Discovered new exit (range 13) 3436 | -10/Subcaves | Build established: Scavenger-Mutant 4027 | -10/Subcaves | Core integrity fell below 50% 4298 | -10/Subcaves | Build established: Mutant 5237 | -10/Subcaves | Discovered new exit (range 10) 5368 | -10/Subcaves | Build established: Derelict-Mutant 5425 | -10/Subcaves | Learned location of Storage (-7) 5465 | -10/Subcaves | Core integrity fell below 20% 5757 | -10/Subcaves | Build established: Mutant 5866 | -10/Subcaves | Destroyed by 8G-4D8(R) with Subdweller Shrapnel Launcher Last Messages --------------- 05320_ Acquired 5 matter. 05324_ Acquired 4 matter. 05425_ Acquired derelict log, extracted data. World map updated: -7/Storage. MT-REB(R) emerges from concealment. 05457_ NQ-NVQ(R) knocked back. 05457_ Battle Cannon destroyed. 05467_ NQ-NVQ(R) destroyed. 05474_ MT-REB(R) affixes Scrap Shield Fragment to Scrap Shield. 05475_ Critical hit (Destroy). 05475_ Spk. Treads destroyed. 05476_ Disposable Heat Sink melted. 05476_ MT-REB(R) destroyed. 05480_ Acquired 33 matter. 05483_ Acquired derelict log, extracted data. World map confirmed: -7/Storage. 05574_ K0-ZMV(R) destroyed. 8G-4D8(R) emerges from concealment. 05860_ TD-46K(R) destroyed. Map ----- +----------------------------------------------------+ | | | ?????????????????????????????????????????????????? | | ?????????????????????????????????????????????????? | | ?????????????????????????????????????????????????? | | ?????????????????????????????????????????????????? | | ?????????????????????????????????????????????????? | | ?????????????????????????????????????????????????? | | ?????????????????????????????????????????????????? | | ?????????????????????????????????????????????????? | | ?????????????????????????????????????????????????? | | ?????????????????????????????????????????????????? | | ?????????????????????????????????????????????????? | | ?????????????????????????????????????????????????? | | ?????????????????????????????????????????????????? | | ?????????????????????????????????????????????????? | | #?###???????????????????########????####?####????? | | ###"#####??????????????#;;;;;# ##???# ### #????? | | ##""" #??????????????# #???# #????? | | """#####??????????## #?### #????? | | ""##" ##?????????#;; #### #####????? | | &= ""##"" #?????????#;; ### #????????? | | %" #?????#####; ## ## ##????????? | | !"" " " ####### # ##""#?????????? | | # """"""" ## ## #; ###"#?????????? | | #" """"" ## #; ####?????????? | | #""""""######" @ #???????????? | | # ""###????## R = #???????????? | | ""##???????## ## ### %*##???????????? | | #####?????????##### #?# #????????????? | | ??????????????????# ???????????? | | ??????????????????# ??????????? | | ??????????????????# ## ?????????? | | ??????????????????# ### ## ????????? | | ??????????????????# #?## ##??????????? | | ??????????????????# ##??## #???????????? | | ??????????????????## #????## ???????????? | | ???????????????????###??????# ##### ???????????? | | ????????????????????????????? #????#?????????????? | | ?????????????????????????????##??????????????????? | | ?????????????????????????????????????????????????? | | ?????????????????????????????????????????????????? | | ?????????????????????????????????????????????????? | | ?????????????????????????????????????????????????? | | ?????????????????????????????????????????????????? | | ?????????????????????????????????????????????????? | | ?????????????????????????????????????????????????? | | ?????????????????????????????????????????????????? | | ?????????????????????????????????????????????????? | | ?????????????????????????????????????????????????? | | ?????????????????????????????????????????????????? | +----------------------------------------------------+ Best States ------------- Heat Dissipation 25 Energy Generation 14 Energy Capacity 280 Matter Stores 300 Matter Capacity 300 Sight Range 16 Terrain Scan Range 16 Terrain Scan Density 10 Armor Coverage 225 Evasion (%) 55 Recoil Reduction 2 Item Schematics ----------------- Huge Storage Unit | -10/Materials | Hacked Robot Schematics ------------------ None Fabricated ------------ Nothing Alien Tech Used ----------------- None Achievements -------------- None Challenges ------------ None Game ------ Seed BehemothHeartDoomcannon Manual? 0 Play Time 00:26:39 Cumulative 88.7 hours Start 2024.04.12 @ 19:27:22 End 2024.04.12 @ 19:52:03 Sessions 1 Manual Loads 0 Difficulty Rogue Special Mode None Game No. 77 Rogue 77 Adventurer 0 Explorer 0 Win Type - Total 2 Types 1/0/1/0/0/0/0/0/0 Lore% 43 Gallery% 57 Achievement% 48 Wizard Run 0 Options --------- Layout 2 ASCII 0 Keyboard 0 Movement Mouse Keybinds 0 Fullscreen 2 Font 32/SmallcapsGlow Map View 50x44 Zoom Use 0% Tactical HUD 1 Map Filters NONE Filters NONE Steam 1 RUN: c0bb5041-5264-4fed-b9b5-25a975f1c7fa